[Event "5th Schach960-Festival 2024"]
[Site "Berlin"]
[Date "2024.02.10"]
[Round "4.3"]
[White "Bluebaum, Matthias"]
[Black "Trent, Lawrence"]
[Result "1/2-1/2"]
[ECO "B12"]
[WhiteElo "2655"]
[BlackElo "2406"]
[Annotator "TA"]
[PlyCount "29"]
[EventDate "2024.02.08"]
[EventCountry "GER"]
[SourceTitle "playchess.com"]
[Source "ChessBase"]
[SourceQuality "1"]
[TimeControl "1500+30"]

{[%evp 9,29,107,249,15,566,45,200,-343,349,-289,491,-168,646,-27,825,260,335,-653,251,-793,62,-947]} 1. d4 {[%emt 0:00:27]} d5 {[%emt 0:01:04]} 2. e4 {[%emt 0:00:49]} c6 {[%emt 0:00:27]} 3. Bf4 {[%emt 0:01:06]} Nd7 {[%emt 0:00:36]} 4. exd5 {[%emt 0:01:29]} cxd5 {[%emt 0:00:05]} 5. Nc3 {[%emt 0:00:10]} Nb6 {[%emt 0:02:38]} (5... Qa5 $16) 6. Qe2 $2 {[%emt 0:00:40]} (6. Nb5 $1 $18 {[%cal Rb5c7] Nc7+ is the strong threat.} f6 7. Nc7+ Kf7 8. a4) 6... Na4 $2 {[%emt 0:03:44][%mdl 8192]} 7. Qe3 $2 {[%emt 0:08:18]} ({White should try} 7. Nb5 $18) 7... g5 $2 {[%emt 0:03:57]} (7... Nxc3 $1 $14 8. Qxc3 e6) 8. h4 $4 {[%emt 0:14:21][%mdl 8192]} (8. Nxa4 $6 gxf4 9. Qxf4 Bh6 $14) (8. Be5 $18 {avoids the disaster.} f6 9. Nxa4) 8... h5 $4 {[%emt 0:15:33][%mdl 8192]} (8... gxf4 $19 9. Qe5 Nxc3 10. Qxh8 Nf6 11. bxc3 Qa5) 9. Rh3 {[%emt 0:00:00][%mdl 8192]} (9. Bxg5 Nxc3 10. Qxc3 f6 $16) (9. Nxa4 gxf4 10. Qe5 (10. Qxf4 Nf6 $16) 10... Nf6 $14) (9. Be5 $18) 9... e5 {[%emt 0:00:22][%mdl 8192]} (9... Bxh3 10. Nxh3 Nxc3 (10... gxf4 $2 11. Bb5+ $18) 11. hxg5 $16 (11. Bxg5 Qa5 $11) (11. Qxc3 Qb6 $14) (11. bxc3 Bg7 $16)) (9... gxf4 $19 {and all is fine.} 10. Bb5+ Bd7) 10. dxe5 $4 {[%emt 0:00:00][%mdl 8192]} (10. Bxg5 f6 11. Bb5+ Bd7 12. Bxa4 (12. Nxa4 Bxb5 13. Nc3 Bb4 $11) 12... Bxa4 13. Nxa4 Qe7 $18) (10. Bxe5 Nxc3 11. bxc3 (11. Bxh8+ Ne4 $18) 11... Rh7 12. hxg5 Ne7) (10. hxg5 Bxh3 11. Nxh3 (11. Nxa4 Bd7 $18) (11. Bxe5 Nxc3 12. Nxh3 Ne4 $18) 11... Nxc3 $18) (10. Qxe5+ $18 Qe7 11. Nxd5 (11. Bxg5 Qxe5+ 12. dxe5 Nxc3 $18) (11. Bb5+ Bd7 $18) 11... Qxe5+ 12. Bxe5) 10... Nc5 $4 {[%emt 0:01:13][%mdl 8192]} ({And not} 10... Bxh3 11. Nxh3 (11. Bxg5 Qa5 $16) 11... Bc5 (11... gxf4 $2 12. Bb5+ Ke7 13. Qxf4 $18) 12. Qd3 gxf4 13. Qb5+ (13. Nxa4 Qa5+ 14. Nc3 O-O-O $16) 13... Qd7 14. Qxd7+ (14. Qxa4 Qxa4 15. Nxa4 Bd4 $11) (14. Nxa4 Be7 $16) 14... Kxd7 15. Bb5+ (15. Nxa4 Be7 $16) 15... Kc8 (15... Ke6 $2 16. Ng5+ Kxe5 17. Nxa4 $16) 16. Bxa4 $16 (16. Nxa4 Bd4 $16)) (10... gxf4 $19 11. Bb5+ Bd7 12. Qxf4 Bxb5 (12... Nxb2 13. Rf3 $11) 13. Nxb5 Qa5+ (13... Nxb2 14. Kf1 $17) 14. Nc3 Qb4 (14... Nxb2 $2 15. Rb1 $19)) 11. Rf3 $2 {[%emt 0:00:00] [#]} (11. Bxg5 $18 d4 12. Bb5+ Bd7 13. Qxd4) 11... Nd3+ $2 {[%emt 0:00:25][%mdl 8192]} 12. cxd3 $2 {[%emt 0:00:00]} (12. Bxd3 gxf4 13. Bb5+ (13. Qxf4 Nh6 $18) (13. Rxf4 Bh6 $18) 13... Bd7 14. Qxf4) 12... d4 {[%emt 0:00:00]} 13. a4 $4 {[%emt 0:00:00][%mdl 8192]} gxh4 $4 {[%emt 0:00:00][%mdl 8192] [#]} (13... dxe3 $19 {and life is good for Black.} 14. Bxe3 gxh4) 14. Ra3 $4 {[%emt 0:00:00][%mdl 8192]} h3 $2 {[%emt 0:00:00] [#]} (14... dxe3 $19 15. Rb3 Be6 16. Rxb7 exf2+ 17. Rxf2 Rb8 18. Rxb8 Qxb8) 15. Ke2 $2 {[%emt 0:05:40][%mdl 40960] Weighted Error Value: White=3.85/Black=3.13.  Loses game:     	White=1     	Black=2      Missed win:     	White=6     	Black=4      Mistake:       	---       	Black=1     . An unexpected result.} 1/2-1/2

[Event "5th Schach960-Festival 2024"]
[Site "Berlin"]
[Date "2024.02.10"]
[Round "4.5"]
[White "Van den Doel, Erik"]
[Black "Fromm, Marius"]
[Result "1/2-1/2"]
[WhiteElo "2551"]
[BlackElo "2435"]
[Annotator "TA"]
[PlyCount "14"]
[EventDate "2024.02.08"]
[EventCountry "GER"]
[SourceTitle "playchess.com"]
[Source "ChessBase"]
[SourceQuality "1"]
[TimeControl "1500+30"]

{[%evp 9,14,4,103,-62,113,-52,84]} 1. d4 {[%emt 0:00:25]} d5 {[%emt 0:01:10]} 2. e4 {[%emt 0:03:16]} e6 {[%emt 0:01:48][%cal Be7e6,Be6e5][%mdl 32]} 3. c3 {[%emt 0:00:00]} e5 {[%emt 0:02:31]} 4. Bf4 {[%emt 0:07:50]} Be7 {[%emt 0:11:59]} 5. Bg3 {[%emt 0:08:27]} c6 {[%emt 0:09:50]} (5... exd4 $11 6. exd5 Nf6) 6. b3 $2 {[%emt 0:04:32] [#]} (6. Bxe5 $6 Nf6 $11) ({White should try} 6. dxe5 $16 {Nd2 is the strong threat.} dxe4 7. Qxd8+ Bxd8 8. Nd2) 6... b6 $2 {[%emt 0:00:00]} (6... exd4 $15 7. exd5 Nf6 (7... Qxd5 8. cxd4 Bb4+ 9. Nd2 $15) (7... cxd5 8. Qxd4 Nc6 9. Qd1 $17) 8. Qxd4 Nxd5 (8... cxd5 9. Bb5+ Nc6 10. Qd3 $15) (8... Qxd5 9. Qxd5 Nxd5 10. Bc4 $15)) 7. Qc1 $2 {[%emt 0:01:21]} (7. Bxe5 Nf6) (7. dxe5 $16 {Black must now prevent Nd2.} Nh6 8. exd5 Qxd5 9. Qxd5 cxd5 10. Nd2) 7... h5 {[%emt 0:00:00] Weighted Error Value: White=1.65/Black=1.37.  Mistake:       	White=1     	Black=2} (7... Nf6 $15 {keeps the upper hand.}) 1/2-1/2

[Event "5th Schach960-Festival 2024"]
[Site "Berlin"]
[Date "2024.02.10"]
[Round "4.6"]
[White "Kracht, Raphael"]
[Black "Kollars, Dmitrij"]
[Result "1-0"]
[ECO "B23"]
[WhiteElo "2144"]
[BlackElo "2632"]
[Annotator "TA"]
[PlyCount "29"]
[EventDate "2024.02.08"]
[EventCountry "GER"]
[SourceTitle "playchess.com"]
[Source "ChessBase"]
[SourceQuality "1"]
[TimeControl "1500+30"]

{[%evp 9,29,-10,14,0,27,-25,0,-44,0,-39,-7,0,12,-31,0,-37,3,-35,-15,-396,1138,-402]} 1. e4 {[%emt 0:05:30]} c5 {[%emt 0:00:33]} 2. Nc3 {[%emt 0:03:37]} Nc6 {[%emt 0:00:18]} 3. d3 {[%emt 0:00:13]} d6 {[%emt 0:04:49]} 4. Bf4 {[%emt 0:04:13]} e5 {[%emt 0:03:30]} 5. Bd2 {[%emt 0:05:45]} h5 {[%emt 0:11:22]} 6. Nf3 {[%emt 0:00:54]} Bd7 {[%emt 0:00:00]} 7. Qe2 {[%emt 0:02:37]} (7. Be2 $142) 7... Be6 {[%emt 0:00:00]} 8. b3 {[%emt 0:02:26] The position is equal.} Rb8 {[%emt 0:00:00]} 9. Nb1 {[%emt 0:01:27]} a5 {[%emt 0:05:52]} 10. a4 {[%emt 0:02:04]} Ra8 {[%emt 0:00:00]} 11. Rg1 {[%emt 0:01:01]} Bd7 {[%emt 0:00:00]} 12. Rh1 {[%emt 0:00:00]} Qb8 {[%emt 0:00:00]} 13. Kd1 {[%emt 0:01:03]} Qc8 {[%emt 0:01:32]} 14. Bxa5 $2 {[%emt 0:00:00][%mdl 8192] [#]} Qc7 $4 {[%emt 0:02:01][%mdl 8192]} 15. h4 $4 {[%emt 0:00:00][%mdl 40960] Weighted Error Value: White=0.98/Black=0.30.  Loses game:     	White=1     	---        Missed win:     	White=1     	Black=1      Mistake:       	White=1     	---        Inaccurate:     	White=5     	Black=5      OK:         	White=1     	---       . Loss on time!?} (15. Bxc7 $18 {was the only winning move.} g5 16. h3 (16. Nxg5 Nf6 $18)) 1-0

[Event "5th Schach960-Festival 2024"]
[Site "Berlin"]
[Date "2024.02.10"]
[Round "4.7"]
[White "Elier, Ali"]
[Black "Orlov, Andrey"]
[Result "0-1"]
[WhiteElo "2181"]
[BlackElo "2487"]
[Annotator "TA"]
[PlyCount "15"]
[EventDate "2024.02.08"]
[EventCountry "GER"]
[SourceTitle "playchess.com"]
[Source "ChessBase"]
[SourceQuality "1"]
[TimeControl "1500+30"]

{[%evp 9,15,-787,0,-937,-369,-1191,-428,-429]} 1. e4 {[%emt 0:04:20]} c5 {[%emt 0:02:15]} 2. d4 {[%emt 0:02:42]} cxd4 {[%emt 0:04:19]} 3. e5 {[%emt 0:01:27]} d5 {[%emt 0:00:14]} 4. Nc3 {[%emt 0:00:00]} Bg4 {[%emt 0:01:01]} 5. f4 {[%emt 0:05:40]} Nf6 $2 {[%emt 0:05:58] [#]} (5... dxc3 6. Qxg4 cxb2 7. Bxb2 $15) (5... Bxd1 $19 6. Nxd1 e6) 6. Be3 $2 {[%emt 0:00:41][%mdl 8192]} dxe3 $2 {[%emt 0:00:43]} (6... Bxd1 7. Nxd1 dxe3 8. exf6 e6 (8... exf6 $2 9. Nf3 $19) (8... Qa5+ $2 9. c3 $19)) 7. Qe2 $2 {[%emt 0:05:38]} (7. Nf3 Nc6 8. exf6) 7... g6 {[%emt 0:06:31]} (7... Bxe2 $142 8. Ngxe2 Ne4) 8. Qb5+ {[%emt 0:01:07] Weighted Error Value: White=4.00/Black=4.00.  Mistake:       	White=1     	---} 0-1

[Event "5th Schach960-Festival 2024"]
[Site "Berlin"]
[Date "2024.02.10"]
[Round "4.8"]
[White "Shchekachev, Andrei"]
[Black "Modler, Andreas"]
[Result "1-0"]
[ECO "C20"]
[WhiteElo "2506"]
[BlackElo "2232"]
[Annotator "TA"]
[PlyCount "20"]
[EventDate "2024.02.08"]
[EventCountry "GER"]
[SourceTitle "playchess.com"]
[Source "ChessBase"]
[SourceQuality "1"]
[TimeControl "1500+30"]

{[%evp 9,20,-13,278,-27,88,-448,-125,-447,-24,-403,-360,-490,731]} 1. e4 {[%emt 0:00:18]} e5 {[%emt 0:00:45]} 2. c3 {[%emt 0:00:43]} Nc6 {[%emt 0:05:53]} 3. a4 {[%emt 0:03:59]} d5 {[%emt 0:01:54]} 4. d3 {[%emt 0:00:12]} Qd7 {[%emt 0:02:15]} 5. a5 {[%emt 0:04:15] [#]} Nxa5 $2 {[%emt 0:03:28][%mdl 8192]} 6. c4 $2 {[%emt 0:00:03]} (6. Rxa5 $18 Nf6 7. Nf3) 6... d4 {[%emt 0:01:11]} 7. Be3 $2 {[%emt 0:01:32][%mdl 8192]} (7. Rxa5 $16 {is forced if you want to stay better.} Bb4+ 8. Bd2 Bxa5 9. Bxa5) 7... b6 $2 {[%emt 0:07:39]} (7... dxe3 $19 8. fxe3 Bb4+ 9. Nc3 Nf6) 8. Nf3 $2 {[%emt 0:03:40][%mdl 8192]} c5 $2 {[%emt 0:01:58]} ({Black should try} 8... dxe3 $19 9. fxe3 Bb4+ 10. Nc3 Qe7) 9. Bxd4 {[%emt 0:10:30][%mdl 8192]} cxd4 {[%emt 0:03:32]} 10. h3 {[%emt 0:03:47] [#]} Qg4 $4 {[%emt 0:01:55][%mdl 8192] Weighted Error Value: White=3.08/Black=2.86.  Loses game:     	White=3     	---        Missed win:     	---       	Black=3      Mistake:       	---       	Black=1      Inaccurate:     	White=1     	---} 1-0

[Event "5th Schach960-Festival 2024"]
[Site "Berlin"]
[Date "2024.02.10"]
[Round "4.9"]
[White "Zenker, Ulrich"]
[Black "Chatalbashev, Boris"]
[Result "1-0"]
[ECO "B10"]
[WhiteElo "2115"]
[BlackElo "2457"]
[Annotator "RC"]
[PlyCount "26"]
[EventDate "2024.02.08"]
[EventCountry "GER"]
[SourceTitle "playchess.com"]
[Source "ChessBase"]
[SourceQuality "1"]
[TimeControl "1500+30"]

1. e4 {[%emt 0:00:27]} e5 {[%emt 0:00:21]} 2. d3 {[%emt 0:01:33]} c6 {[%emt 0:00:36]} 3. Nc3 {[%emt 0:00:22]} Na6 {[%emt 0:03:13]} 4. Be3 {[%emt 0:04:59]} d5 {[%emt 0:11:40]} 5. Nxd5 {[%emt 0:12:21]} g6 {[%emt 0:00:00]} 6. c4 {[%emt 0:05:52]} Nb4 {[%emt 0:00:00]} 7. a3 {[%emt 0:00:35]} Nxd3+ {[%emt 0:00:00]} 8. Ke2 {[%emt 0:00:58]} Nxb2 {[%emt 0:00:00]} 9. Kf3 {[%emt 0:00:24]} g5 {[%emt 0:11:33]} 10. h4 {[%emt 0:00:16]} Nxc4 {[%emt 0:00:00]} 11. a4 {[%emt 0:00:06]} Nb2 {[%emt 0:00:00]} 12. a5 {[%emt 0:01:19]} Nc4 {[%emt 0:00:00]} 13. a6 {[%emt 0:00:00]} b6 {[%emt 0:00:00]} 1-0

[Event "5th Schach960-Festival 2024"]
[Site "Berlin"]
[Date "2024.02.10"]
[Round "4.10"]
[White "Glek, Igor"]
[Black "Artukovic, Adis"]
[Result "1-0"]
[WhiteElo "2423"]
[BlackElo "2057"]
[Annotator "TA"]
[PlyCount "19"]
[EventDate "2024.02.08"]
[EventCountry "GER"]
[SourceTitle "playchess.com"]
[Source "ChessBase"]
[SourceQuality "1"]
[TimeControl "1500+30"]

{[%evp 9,19,-1114,568,-811,843,228,309,244,259,-181,345,-816]} 1. d4 {[%emt 0:00:48]} d5 {[%emt 0:00:21]} 2. Nc3 {[%emt 0:00:00]} Nd7 {[%emt 0:01:32]} 3. Qd3 {[%emt 0:00:27]} c6 {[%emt 0:03:04]} 4. Qg3 {[%emt 0:04:44]} h6 {[%emt 0:01:20]} 5. Qb8 {[%emt 0:02:05]} Nc5 $4 {[%emt 0:03:12][%mdl 8192] [#]} (5... Nxb8 $19 6. Bf4 Bf5) 6. dxc5 $4 {[%emt 0:00:30][%mdl 8192]} Nf6 $4 {[%emt 0:07:25][%mdl 8192]} (6... Rxb8 $19 7. Nf3 e5 8. Nxe5 Bxc5) 7. Qg3 $2 {[%emt 0:07:32]} (7. Qxa8 g5 8. e4 (8. Qxa7 Bg7 $18)) 7... Rh7 {[%emt 0:10:03]} 8. Qf3 {[%emt 0:05:15]} Qc7 {[%emt 0:01:54] [#]} 9. Bxh6 $4 {[%emt 0:01:25][%mdl 8192]} Be6 $4 {[%emt 0:00:10][%mdl 8192] [#]} ({Don't play} 9... gxh6 10. e3 $15) (9... Rxh6 $19 {avoids the disaster.} 10. h4 Bg4) 10. Qh5 $4 {[%emt 0:07:44][%mdl 40960] Weighted Error Value: White=3.36/Black=2.60.  Missed win:     	White=2     	Black=1      Mistake:       	White=1     	---       . Loss on time!?} 1-0

[Event "5th Schach960-Festival 2024"]
[Site "Berlin"]
[Date "2024.02.10"]
[Round "5.4"]
[White "Kunin, Vitaly"]
[Black "Player, Edmund C"]
[Result "1/2-1/2"]
[WhiteElo "2521"]
[BlackElo "2199"]
[Annotator "TA"]
[PlyCount "19"]
[EventDate "2024.02.08"]
[EventCountry "GER"]
[SourceTitle "playchess.com"]
[Source "ChessBase"]
[SourceQuality "1"]
[TimeControl "1500+30"]

{[%evp 9,19,-240,52,-383,-334,-481,-376,-945,-293,-684,-380,-901]} 1. Nc3 {[%emt 0:00:50]} b5 {[%emt 0:05:13]} 2. b4 {[%emt 0:00:53]} g6 {[%emt 0:02:20]} 3. f4 {[%emt 0:01:30]} f5 {[%emt 0:05:22]} 4. e3 {[%emt 0:02:42]} c5 {[%emt 0:00:00]} 5. Ne4 {[%emt 0:05:32]} cxb4 $2 {[%emt 0:13:54] [#]} (5... fxe4 $19 6. bxc5 e5 7. Bxb5 exf4 (7... Bxc5 $2 8. Ne2 $19)) 6. Qe2 $2 {[%emt 0:14:52][%mdl 8192]} fxe4 {[%emt 0:00:00]} 7. a4 {[%emt 0:00:00]} (7. Bb2 {was called for.} Nf6 8. g4) 7... Kf7 {[%emt 0:01:15]} 8. Ra3 $2 {[%emt 0:00:00]} (8. Qxb5 e6 9. Bb2) 8... Ke6 $2 {[%emt 0:00:00]} (8... bxa3 9. axb5 d5 10. Bxa3 Nh6) 9. h4 $2 {[%emt 0:00:00]} (9. Rb3) 9... Kf7 {[%emt 0:00:00]} 10. Rh3 $2 {[%emt 0:01:42][%mdl 32768] Black took control after the opening.   Weighted Error Value: White=3.46/Black=2.42.  Mistake:       	White=4     	Black=1     . An unexpected result.} (10. Ra2) 1/2-1/2

[Event "5th Schach960-Festival 2024"]
[Site "Berlin"]
[Date "2024.02.10"]
[Round "5.5"]
[White "Orlov, Andrey"]
[Black "Stopa, Jacek"]
[Result "1-0"]
[WhiteElo "2487"]
[BlackElo "2344"]
[Annotator "TA"]
[PlyCount "13"]
[EventDate "2024.02.08"]
[EventCountry "GER"]
[SourceTitle "playchess.com"]
[Source "ChessBase"]
[SourceQuality "1"]
[TimeControl "1500+30"]

{[%evp 8,13,59,35,64,-204,139,-189]} 1. Nc3 {[%emt 0:03:01]} b5 {[%emt 0:01:53]} 2. g3 {[%emt 0:00:01]} c6 {[%emt 0:00:00]} 3. b3 {[%emt 0:01:10]} g6 {[%emt 0:00:34]} 4. e4 {[%emt 0:17:59]} e6 {[%emt 0:18:45]} 5. d4 {[%emt 0:00:41]} a5 {[%emt 0:00:46] [#]} 6. Nxb5 $2 {[%emt 0:03:33][%mdl 8192] White is more active.} h6 $2 {[%emt 0:00:00] [#]} ({Black should play} 6... cxb5 $19 7. Bxb5 Bb4+ 8. Bd2 Qb6 9. Bxb4 axb4 (9... Qxb5 10. Ba3 $17)) 7. Nd6+ $2 {[%emt 0:00:40][%mdl 40960] Weighted Error Value: White=1.87/Black=2.13.  Loses game:     	White=2     	---        Missed win:     	---       	Black=1     . Loss on time!?} 1-0

[Event "5th Schach960-Festival 2024"]
[Site "Berlin"]
[Date "2024.02.10"]
[Round "5.6"]
[White "Zatonskih, Anna"]
[Black "Shchekachev, Andrei"]
[Result "0-1"]
[WhiteElo "2347"]
[BlackElo "2506"]
[Annotator "TA"]
[PlyCount "15"]
[EventDate "2024.02.08"]
[EventCountry "GER"]
[SourceTitle "playchess.com"]
[Source "ChessBase"]
[SourceQuality "1"]
[TimeControl "1500+30"]

{[%evp 9,15,-393,25,-362,50,-429,-21,-535]} 1. Nc3 {[%emt 0:01:03]} g6 {[%emt 0:01:05]} 2. g3 {[%emt 0:07:20]} c6 {[%emt 0:03:10]} 3. f4 {[%emt 0:01:56]} d5 {[%emt 0:06:06]} 4. e4 {[%emt 0:07:02]} dxe4 {[%emt 0:02:35]} 5. Nf3 {[%emt 0:04:45]} b6 $2 {[%emt 0:04:27] [#]} (5... exf3 $19 6. Qxf3 Bg7) 6. d3 $2 {[%emt 0:03:03][%mdl 8192]} a5 $2 {[%emt 0:05:56]} (6... exf3 $19 7. Qxf3 Bg7) 7. f5 $2 {[%emt 0:02:23][%mdl 8192]} (7. dxe4 $14 {keeps the upper hand.} Qxd1+ 8. Nxd1) 7... a4 $2 {[%emt 0:02:33]} ({Weaker is} 7... Bxf5 8. Nxe4 Bg7 9. Qe2 $17) (7... gxf5 8. Nh4 $17) (7... exf3 $19 8. fxg6 f2+ (8... fxg6 $2 9. Qxf3 Nf6 10. Bg2 $19) 9. Kxf2 hxg6 (9... fxg6 $2 10. Bg2 $19)) 8. Kd2 $2 {[%emt 0:00:00][%mdl 8192] Weighted Error Value: White=3.94/Black=4.00.  Loses game:     	White=2     	---        Missed win:     	---       	Black=2} 0-1

[Event "5th Schach960-Festival 2024"]
[Site "Berlin"]
[Date "2024.02.10"]
[Round "5.7"]
[White "Kracht, Raphael"]
[Black "Dgebuadze, Alexandre"]
[Result "0-1"]
[ECO "A10"]
[WhiteElo "2144"]
[BlackElo "2441"]
[Annotator "TA"]
[PlyCount "24"]
[EventDate "2024.02.08"]
[EventCountry "GER"]
[SourceTitle "playchess.com"]
[Source "ChessBase"]
[SourceQuality "1"]
[TimeControl "1500+30"]

{[%evp 9,24,17,86,34,43,-40,0,-14,25,-159,-32,-162,96,-120,-47,-62,-29]} 1. c4 {[%emt 0:03:06]} Nc6 {[%emt 0:00:59]} 2. b4 {[%emt 0:00:50]} g6 {[%emt 0:02:04]} 3. Nc3 {[%emt 0:00:48]} Nd4 {[%emt 0:04:00]} 4. e3 {[%emt 0:00:02]} Ne6 {[%emt 0:00:56]} 5. c5 {[%emt 0:01:15]} f5 {[%emt 0:01:14]} (5... a5 $11 {keeps the balance.}) 6. d3 {[%emt 0:00:15]} (6. Qb3 $16) 6... Nf6 {[%emt 0:00:02]} 7. g3 {[%emt 0:00:09]} (7. d4 $14) 7... b6 {[%emt 0:00:18]} 8. cxb6 {[%emt 0:01:39] The position is equal.} axb6 {[%emt 0:01:45]} 9. Ke2 $2 {[%emt 0:00:15] [#]} (9. Bg2 $11 c6 10. Qb3) 9... Ng5 {[%emt 0:00:00] Black is more active.} ({Better is} 9... Bb7 $17 10. Nf3 Nd5) 10. a4 {[%emt 0:00:00]} (10. Bg2 $15 c6 11. a4) 10... Kf7 $2 {[%emt 0:00:00]} (10... Bb7 $19 11. f3 e5) 11. a5 $2 {[%emt 0:00:28]} (11. Bg2 $16 {and life is bright.} c6 12. h4) 11... bxa5 {[%emt 0:00:00]} (11... Bb7 $17 12. Qb3+ Ne6) 12. bxa5 {[%emt 0:00:02]} c6 {[%emt 0:20:12][%mdl 32768] Weighted Error Value: White=1.23/Black=1.05.  Missed win:     	---       	Black=1      Mistake:       	White=4     	Black=2      Inaccurate:     	---       	Black=3     . Loss on time!?} 0-1

[Event "5th Schach960-Festival 2024"]
[Site "Berlin"]
[Date "2024.02.10"]
[Round "5.8"]
[White "Fromm, Marius"]
[Black "Zenker, Ulrich"]
[Result "1/2-1/2"]
[WhiteElo "2435"]
[BlackElo "2115"]
[Annotator "TA"]
[PlyCount "14"]
[EventDate "2024.02.08"]
[EventCountry "GER"]
[SourceTitle "playchess.com"]
[Source "ChessBase"]
[SourceQuality "1"]
[TimeControl "1500+30"]

{[%evp 9,14,72,222,41,120,67,179]} 1. g3 {[%emt 0:00:29]} f5 {[%emt 0:00:06][%cal Bf7f5,Bf5f4][%mdl 32]} 2. b3 {[%emt 0:00:28]} f4 {[%emt 0:01:39]} 3. Nc3 {[%emt 0:02:21]} Nf6 {[%emt 0:18:41]} 4. a4 {[%emt 0:02:27]} Nd5 {[%emt 0:04:49]} 5. Ne4 {[%emt 0:14:36]} Kf7 {[%emt 0:00:00]} (5... e5 $16 {is a better defense.}) 6. g4 $2 {[%emt 0:06:44] [#]} ({White should try} 6. gxf4 $18 {Bb2 would now be deadly.} Nf6 7. Ng3) 6... a5 {[%emt 0:01:38]} (6... e5 $14) 7. c3 {[%emt 0:00:00]} ({White should play} 7. e3 $16) 7... Rg8 {[%emt 0:02:07] Weighted Error Value: White=1.38/Black=1.15.  Mistake:       	White=1     	Black=2} (7... Nf6 $14) 1/2-1/2

[Event "5th Schach960-Festival 2024"]
[Site "Berlin"]
[Date "2024.02.10"]
[Round "5.10"]
[White "Loew, Gerald"]
[Black "Garbuz, Vitaliy"]
[Result "1-0"]
[ECO "A00"]
[WhiteElo "2167"]
[BlackElo "2158"]
[Annotator "NA RC"]
[PlyCount "24"]
[EventDate "2024.02.08"]
[EventCountry "GER"]
[SourceTitle "playchess.com"]
[Source "ChessBase"]
[SourceQuality "1"]
[TimeControl "1500+30"]

1. b4 {[%emt 0:00:16]} g6 {[%emt 0:01:38]} 2. g3 {[%emt 0:00:00]} e5 {[%emt 0:02:41]} 3. f4 {[%emt 0:03:09]} exf4 {[%emt 0:00:23]} 4. gxf4 {[%emt 0:01:19]} f5 {[%emt 0:07:23]} 5. Nc3 {[%emt 0:06:12]} Ne7 {[%emt 0:07:34]} 6. b5 {[%emt 0:02:09]} b6 {[%emt 0:00:08]} 7. a4 {[%emt 0:02:35]} a6 {[%emt 0:00:00]} 8. Ra3 {[%emt 0:03:48]} c6 {[%emt 0:08:51]} 9. bxc6 {[%emt 0:09:59]} Nd5 {[%emt 0:00:19]} 10. Nxd5 {[%emt 0:00:00]} Kf7 {[%emt 0:00:57]} 11. Rf3 {[%emt 0:00:00]} Rg8 {[%emt 0:00:33]} 12. Rg3 {[%emt 0:00:12]} Rg7 {[%emt 0:00:00]} 1-0

[Event "5th Schach960-Festival 2024"]
[Site "Berlin"]
[Date "2024.02.10"]
[Round "6.2"]
[White "Shchekachev, Andrei"]
[Black "Azarov, Sergei"]
[Result "0-1"]
[ECO "A00"]
[WhiteElo "2506"]
[BlackElo "2596"]
[Annotator "TA"]
[PlyCount "32"]
[EventDate "2024.02.08"]
[EventType "swiss"]
[EventCountry "GER"]
[SourceTitle "playchess.com"]
[Source "ChessBase"]
[SourceQuality "1"]
[TimeControl "1500+30"]

{[%evp 9,32,-81,389,-100,291,-476,-181,-483,-477,-485,-470,-474,-431,-527,-543,-556,-271,-660,-546,-846,-516,-894,-727,-1192,-789]} 1. g3 {[%emt 0:01:02]} e5 {[%emt 0:01:59]} 2. f4 {[%emt 0:01:24]} f6 {[%emt 0:00:18]} 3. Bg2 {[%emt 0:03:06]} Nc6 {[%emt 0:00:33]} 4. Nc3 {[%emt 0:04:38]} Bc5 {[%emt 0:12:25]} 5. d4 {[%emt 0:03:10] [#]} d6 $2 {[%emt 0:00:11][%mdl 8192]} 6. Nd5 $2 {[%emt 0:01:39] [#] Repels Nge7} (6. dxc5 $18 Nge7 7. b3) 6... Nge7 $2 {[%emt 0:02:41][%mdl 8192] [#]} 7. Nb6 $4 {[%emt 0:03:23][%mdl 8192]} axb6 $2 {[%emt 0:00:02]} (7... Bxb6 8. d5 Nb8) 8. d5 $2 {[%emt 0:00:27]} (8. dxc5 {is more resistant.} bxc5 9. e4) 8... Nb8 $19 {[%emt 0:00:08]} 9. e4 {[%emt 0:01:33]} Nd7 {[%emt 0:00:18]} 10. f5 {[%emt 0:02:43]} g6 {[%emt 0:01:44]} 11. g4 {[%emt 0:00:46]} h5 {[%emt 0:00:05]} 12. h3 {[%emt 0:02:32]} g5 {[%emt 0:05:38]} (12... hxg4 $142 13. fxg6 Nxg6 14. Qxg4 Ndf8) 13. Rh2 $2 {[%emt 0:01:42]} (13. gxh5 Bxg1 14. Rxg1) 13... c6 {[%emt 0:00:00] Black is clearly winning.} 14. Bf3 {[%emt 0:00:00]} Nxd5 {[%emt 0:00:00]} 15. c4 {[%emt 0:03:18]} (15. exd5 $142 hxg4 (15... Bxg1 $2 16. Rg2 $19) 16. Bxg4 Bxg1 17. Rd2) 15... Nf4 {[%emt 0:00:30]} 16. Rg2 {[%emt 0:00:37]} d5 {[%emt 0:06:58] Black took control after the opening.   Weighted Error Value: White=2.63/Black=2.02.  Loses game:     	---       	Black=1      Missed win:     	White=1     	---        Mistake:       	White=3     	Black=2      Inaccurate:     	White=2     	---        OK:         	---       	Black=2} 0-1